bitfinex/quotes_SOLUSD_20240716
["timestamp","ask_amount","ask_price","bid_price","bid_amount"]
[1721133432568,16.3608,157.22,157.16,6.3628]
[1721133432770,16.1363,157.24,157.17,1.272453]
[1721133432995,16.3606,157.22,157.17,22.2681]
[1721133433202,10.0,157.2,157.14,15.9089]
[1721133433502,6.1363,157.24,156.95,31.8553]
[1721133433503,10.0,157.15,156.95,31.8553]
[1721133433668,10.0,157.15,157.1,6.3653]
[1721133433884,10.0,157.15,157.11,6.3648]
[1721133434066,10.0,157.17,157.13,6.364]
[1721133434272,10.0,157.15,157.02,42.09]
[1721133434490,16.3617,157.19,157.13,6.3638]
[1721133434666,45.0,157.18,157.13,6.3638]
[1721133434886,45.0,157.18,157.15,6.3632]
[1721133435195,45.0,157.18,157.14,22.2728]
[1721133435581,10.0,157.22,157.16,15.9069]
[1721133435784,10.0,157.22,157.17,6.3625]
[1721133436181,10.0,157.2,157.16,6.3627]
[1721133436394,10.0,157.22,157.12,1.27240326]
[1721133436575,10.0,157.22,157.17,6.3624]
[1721133436777,16.3605,157.22,157.18,1.27228192]
[1721133436975,6.3601,157.23,157.18,1.27228192]
[1721133437585,10.0,157.22,157.17,15.9059]
[1721133437800,10.0,157.22,157.14,15.9088]
[1721133437989,10.0,157.2,157.14,15.9088]
[1721133438298,22.036,157.24,157.15,6.363]
[1721133438299,6.3612,157.21,157.15,6.363]
[1721133438627,10.0,157.22,157.17,6.3624]
[1721133438787,16.3606,157.22,157.17,1.27229427]
[1721133439103,16.3605,157.22,157.17,6.3624]
[1721133439805,10.0,157.22,157.15,6.3629]
[1721133440096,10.0,157.22,157.13,16.25]
[1721133440097,10.0,157.2,157.13,15.91]
[1721133440295,6.3619,157.19,157.13,22.2737]
[1721133440491,10.0,157.2,157.13,15.91]
[1721133440702,10.0,157.18,157.13,15.91]
[1721133440884,45.0,157.19,157.14,6.3634]
[1721133441090,45.0,157.19,157.13,15.91]
[1721133441418,10.0,157.2,157.15,6.363]
[1721133441715,16.3616,157.2,157.14,6.3636]
[1721133441888,10.0,157.2,157.15,6.3632]
[1721133442092,16.3605,157.22,157.15,17.17982715]
[1721133442292,10.0,157.22,157.17,6.3622]
[1721133442697,22.4961,157.24,157.18,6.362]
[1721133442890,6.3601,157.23,157.18,6.362]
[1721133443110,10.0,157.22,157.15,6.3632]
[1721133443406,6.3617,157.19,157.14,15.9086]
[1721133443611,16.3614,157.2,157.14,22.2723]
[1721133443901,10.0,157.22,157.16,6.3628]
[1721133444279,10.0,157.22,157.17,1.27235113]
[1721133444476,10.0,157.22,157.18,7.63424849]
[1721133444692,16.3605,157.22,157.17,7.63465114]
[1721133444892,10.0,157.22,157.16,15.907]
[1721133445096,6.3609,157.21,157.16,15.907]
[1721133445316,6.1363,157.24,157.13,22.2739]
[1721133445317,10.0,157.2,157.13,22.2739]
[1721133445483,6.3618,157.19,157.13,22.2739]
[1721133445682,16.3614,157.2,157.14,6.3636]
[1721133445893,16.3614,157.2,157.15,6.3632]
[1721133446096,6.3609,157.21,157.16,6.3627]
[1721133446306,22.0359,157.24,157.18,6.3618]
[1721133446307,22.4963,157.24,157.18,6.3618]
[1721133447083,6.3601,157.23,157.18,6.3618]
[1721133447893,16.3597,157.24,157.18,7.63405128]
[1721133448202,10.0,157.2,157.14,22.2723]
[1721133448391,16.3624,157.18,157.12,6.3641]
[1721133448782,6.3628,157.17,157.11,15.9118]
[1721133449296,10.0,157.18,157.13,22.2739]
[1721133449703,10.0,157.2,157.13,15.9099]
[1721133450217,6.3617,157.19,157.13,15.9099]
[1721133450517,16.3614,157.2,157.14,6.3634]
[1721133451017,16.3608,157.22,157.15,15.9078]
[1721133451223,10.0,157.24,157.16,1.27237517]
[1721133451408,6.3601,157.23,157.17,22.2677]
[1721133451711,16.3606,157.22,157.17,22.2677]
[1721133451917,6.3602,157.23,157.17,22.2677]
[1721133452410,10.0,157.24,157.18,7.63424038]
[1721133452411,16.3597,157.24,157.18,7.63424038]
[1721133452617,6.3593,157.25,157.18,1.27224038]
[1721133453005,16.3589,157.26,157.19,15.9035]
[1721133453213,6.0381,157.28,157.21,15.9017]
[1721133453394,12.3965,157.28,157.21,17.17360274]
[1721133453595,10.0,157.27,157.21,15.9017]
[1721133453999,6.36,157.24,157.18,15.9051]
[1721133454199,10.0,157.23,157.16,16.4467]
[1721133454416,16.3601,157.23,157.17,6.3624]
[1721133454622,10.0,157.23,157.16,22.8095]
[1721133455207,6.3605,157.22,157.16,22.8095]
[1721133455398,16.3602,157.23,157.18,6.362]
[1721133455621,16.3596,157.25,157.2,6.3611]
[1721133455801,10.0,157.23,157.19,15.9039]
[1721133455997,10.0,157.23,157.16,32.3534]
[1721133456304,16.3593,157.25,157.19,6.3613]
[1721133456492,45.0,157.24,157.18,15.9047]
[1721133456695,51.3599,157.24,157.18,22.2664]
[1721133456921,16.3604,157.23,157.18,15.9047]
[1721133457095,6.3606,157.22,157.16,6.3628]
[1721133457301,16.361,157.21,157.16,6.3627]
[1721133457510,10.0,157.21,157.16,6.3627]
[1721133457701,10.0,157.21,157.14,15.9088]
[1721133457919,10.0,157.23,157.17,6.3625]
[1721133458099,10.0,157.23,157.18,15.9049]
[1721133458420,45.0,157.22,157.15,15.9079]
[1721133458614,10.0,157.21,157.15,15.9079]
[1721133458807,16.3611,157.21,157.15,22.2711]
[1721133459006,16.3611,157.21,157.15,15.9079]
[1721133459315,16.3603,157.23,157.18,6.362]
[1721133459720,10.0,157.26,157.2,6.3612]
[1721133460197,10.0,157.28,157.23,6.36]
[1721133460401,10.0,157.3,157.24,6.3595]
[1721133460620,6.3585,157.27,157.2,15.9027]
[1721133460815,10.0,157.28,157.22,6.3603]
[1721133461016,10.0,157.3,157.24,6.3596]
[1721133461334,10.0,157.3,157.25,6.3591]
[1721133461628,10.0,157.3,157.23,6.3597]
[1721133461827,10.0,157.3,157.24,6.3596]
[1721133462009,16.4066,157.32,157.25,6.3589]
[1721133462338,16.4066,157.32,157.25,15.8977]
[1721133462529,10.0,157.34,157.26,1.27149655]
[1721133462822,10.0,157.34,157.27,16.0654]
[1721133462999,10.0,157.34,157.27,15.8954]
[1721133463613,6.3564,157.33,157.27,22.2538]
[1721133463814,10.0,157.34,157.27,15.8954]
[1721133464017,10.0,157.34,157.29,6.3573]
[1721133464424,10.0,157.34,157.3,6.3569]
[1721133464625,10.0,157.34,157.29,22.251]
[1721133464814,10.0,157.32,157.27,6.3581]
[1721133465021,10.0,157.3,157.19,54.0127]
[1721133465225,6.3586,157.27,157.22,15.9012]
[1721133465434,10.0,157.3,157.22,15.9012]
[1721133465837,10.0,157.3,157.19,54.0127]
[1721133465838,10.0,157.3,157.26,6.3588]
[1721133466140,10.0,157.33,157.19,85.8205]
[1721133466350,10.0,157.31,157.26,15.8963]
[1721133466651,10.0,157.33,157.27,6.3582]
[1721133466806,10.0,157.31,157.26,22.2551]
[1721133467144,10.0,157.31,157.25,6.3592]
[1721133467336,16.3569,157.31,157.25,6.3592]
[1721133467631,10.0,157.33,157.28,6.358]
[1721133467845,10.0,157.31,157.26,6.3587]
[1721133468349,64.1,157.36,157.25,15.8976]
[1721133468350,10.0,157.33,157.25,15.8976]
[1721133468671,10.0,157.33,157.28,6.3579]
[1721133469308,10.0,157.33,157.29,6.3575]
[1721133469524,16.3553,157.35,157.29,6.3575]
[1721133469729,45.0,157.34,157.29,6.3575]
[1721133469927,6.3556,157.34,157.29,6.3575]
[1721133470138,6.3549,157.36,157.3,6.3569]
[1721133470316,16.3552,157.35,157.3,6.3569]
[1721133470546,16.3552,157.35,157.29,22.2509]
[1721133470728,10.0,157.35,157.26,15.8968]
[1721133470932,10.0,157.37,157.3,6.3572]
[1721133471143,10.0,157.35,157.3,6.3572]
[1721133471327,6.3559,157.34,157.28,22.2525]
[1721133471641,10.0,157.35,157.29,6.3573]
[1721133471844,6.226,157.38,157.31,22.2486]
[1721133471845,16.3544,157.37,157.31,22.2486]
[1721133472153,61.3544,157.37,157.32,1.27119042]
[1721133472320,6.3549,157.36,157.31,22.2488]
[1721133472526,61.3545,157.37,157.32,6.3564]
[1721133472727,61.3545,157.37,157.31,22.2488]
[1721133473035,6.3549,157.36,157.31,22.2488]
[1721133473348,6.3553,157.35,157.3,6.3572]
[1721133473557,6.3553,157.35,157.29,6.3576]
[1721133474057,61.3545,157.37,157.31,6.3565]
[1721133474260,6.3545,157.37,157.32,1.27111086]
[1721133474443,6.226,157.38,157.33,1.27109937]
[1721133474444,6.354,157.38,157.33,1.27109937]
[1721133474648,26.0492,157.41,157.34,1.27104713]
[1721133474849,6.3536,157.39,157.34,7.62654713]
[1721133475163,16.3533,157.4,157.35,6.3552]
[1721133475330,16.3533,157.4,157.34,6.3555]
[1721133476334,10.0,157.4,157.34,6.3553]
[1721133476539,16.518,157.42,157.29,1.27078888]
[1721133476755,16.518,157.42,157.3,1.61078073]
[1721133476950,12.8707,157.42,157.36,6.3544]
[1721133477153,12.8707,157.42,157.37,1.2706589]
[1721133477355,12.8707,157.42,157.3,0.34]
[1721133477356,16.518,157.42,157.33,15.8896]
[1721133477543,6.3537,157.39,157.33,15.8896]
[1721133477734,6.518,157.42,157.33,15.8896]
[1721133477735,16.518,157.42,157.33,15.8896]
[1721133478062,6.3537,157.39,157.33,15.8896]
[1721133478251,10.0,157.4,157.33,15.8896]
[1721133478455,6.3537,157.39,157.33,6.3559]
[1721133478843,10.0,157.38,157.32,15.8907]
[1721133479064,16.3541,157.38,157.32,22.2468]
[1721133479366,6.3541,157.38,157.33,6.3559]
[1721133479530,10.0,157.4,157.34,6.3556]
[1721133479736,22.8706,157.42,157.36,6.3547]
[1721133480047,6.3529,157.41,157.35,22.243]
[1721133480368,16.518,157.42,157.35,22.2429]
[1721133480535,16.518,157.42,157.35,15.8878]
[1721133480862,6.3529,157.41,157.35,6.3551]
[1721133481241,12.8706,157.42,157.36,7.62547132]
[1721133481453,12.8706,157.42,157.36,6.3547]
[1721133482070,0.8524118,157.43,157.36,15.8862]
[1721133482369,16.3533,157.4,157.34,6.3555]
[1721133482557,10.0,157.4,157.33,15.89]
[1721133483241,6.3537,157.39,157.33,22.246]
[1721133483456,10.0,157.4,157.33,15.89]
[1721133483957,16.3533,157.4,157.34,6.3553]
[1721133484259,10.0,157.4,157.34,6.3553]
[1721133484463,6.3551,157.36,157.3,15.8931]
[1721133484761,16.3541,157.38,157.32,6.356]
[1721133484968,10.0,157.39,157.32,15.8907]
[1721133485157,16.3537,157.39,157.33,6.356]
[1721133485334,10.0,157.37,157.32,22.2468]
[1721133485535,6.3554,157.35,157.29,6.5274]
[1721133485752,10.0,157.37,157.29,0.17]
[1721133485972,6.3549,157.36,157.31,6.3568]
[1721133486131,16.3545,157.37,157.32,1.27114663]
[1721133486332,10.0,157.39,157.32,17.16184663]
[1721133486532,10.0,157.39,157.34,6.3555]
[1721133486849,55.0,157.38,157.32,15.8907]
[1721133487052,61.3543,157.38,157.32,22.247]
[1721133487248,10.0,157.38,157.33,6.3556]
[1721133487483,10.0,157.38,157.32,15.8907]
[1721133487683,10.0,157.38,157.35,15.8876]
[1721133487992,10.0,157.38,157.32,15.8906]
[1721133488472,10.0,157.38,157.28,22.7568]
[1721133488473,6.3529,157.41,157.34,15.8886]
[1721133488655,6.3529,157.41,157.35,7.6256456]
[1721133488856,16.3533,157.4,157.34,22.2442]
[1721133489176,10.0,157.42,157.34,15.8886]
[1721133489382,10.0,157.42,157.35,1.27079268]
[1721133489689,16.3532,157.4,157.34,15.8886]
[1721133490060,10.0,157.4,157.32,1.27079178]
[1721133490258,16.354,157.38,157.32,1.27097031]
[1721133490476,6.3545,157.37,157.31,23.51957079]
[1721133490777,16.3551,157.36,157.3,6.3571]
[1721133490981,6.3545,157.37,157.31,6.3568]
[1721133491283,16.3548,157.36,157.29,15.8932]
[1721133491457,10.0,157.34,157.28,16.5304]
[1721133491655,10.0,157.34,157.28,15.8944]
[1721133491962,6.3561,157.33,157.28,15.8944]
[1721133492166,16.3564,157.32,157.26,6.3585]
[1721133492364,10.0,157.32,157.25,15.898]
[1721133492667,16.3566,157.32,157.26,6.3585]
[1721133492866,6.3571,157.31,157.25,22.2572]
[1721133493181,10.0,157.32,157.25,15.898]
[1721133493969,10.0,157.32,157.25,22.2572]
[1721133493970,6.3569,157.31,157.25,22.2572]
[1721133494181,10.0,157.29,157.23,15.0529]
[1721133494370,10.0,157.29,157.21,15.902]
[1721133494571,16.3586,157.27,157.21,22.2628]
[1721133495077,10.0,157.29,157.23,6.3599]
[1721133495270,10.0,157.27,157.21,15.902]
[1721133495656,10.0,157.27,157.22,6.3604]
[1721133495989,16.3577,157.29,157.23,6.36]
[1721133496163,10.0,157.29,157.23,15.8996]
[1721133496857,10.0,157.29,157.24,6.3594]
[1721133497053,25.34178467,157.36,157.26,6.3585]
[1721133497054,10.0,157.33,157.26,6.3585]
[1721133497355,10.0,157.31,157.26,6.3588]
[1721133497881,10.0,157.27,157.21,15.902]
[1721133498179,10.0,157.25,157.21,15.902]
[1721133498476,10.0,157.25,157.21,22.2628]
[1721133499569,10.0,157.25,157.22,6.3604]
[1721133499889,10.0,157.25,157.21,15.902]
[1721133499890,10.0,157.25,157.21,22.2628]
[1721133500386,10.0,157.25,157.18,15.9048]
[1721133500565,10.0,157.23,157.2,6.361]
[1721133500767,10.0,157.23,157.18,15.9048]
[1721133501081,16.1532,157.27,157.16,6.3628]
[1721133501082,10.0,157.21,157.16,6.3628]
[1721133501272,10.0,157.21,157.17,6.3625]
[1721133501793,10.0,157.19,157.15,15.9079]
[1721133502091,10.0,157.19,157.16,6.3627]
[1721133502270,10.0,157.19,157.15,15.9079]
[1721133502470,10.0,157.19,157.16,6.3625]
[1721133502693,10.0,157.19,157.17,6.3625]
[1721133503357,10.0,157.19,157.16,6.3628]
[1721133504187,10.0,157.17,157.12,15.9108]
[1721133504396,10.0,157.15,157.12,22.2752]
[1721133504555,10.0,157.15,157.12,22.2753]
[1721133504895,16.4102,157.17,157.13,6.3641]
[1721133505485,16.4102,157.17,157.12,15.9108]
[1721133505786,22.7728,157.17,157.11,6.3645]
[1721133505988,16.4102,157.17,157.12,6.3645]
[1721133506166,22.7728,157.17,157.11,6.3648]
[1721133506360,10.0,157.15,157.1,6.3653]
[1721133506684,10.0,157.13,157.09,22.2796]
[1721133506865,45.0,157.14,157.09,22.2796]
[1721133507186,10.0,157.15,157.11,6.3649]
[1721133507481,10.0,157.15,157.09,15.914]
[1721133507666,16.4102,157.17,157.12,6.3642]
[1721133507861,22.7727,157.17,157.11,22.2764]
[1721133508260,10.0,157.14,157.09,6.3657]
[1721133508658,10.0,157.14,157.1,6.3653]
[1721133509473,16.3638,157.14,157.08,22.2812]
[1721133510189,10.0,157.14,157.09,6.3657]
[1721133510378,10.0,157.14,157.1,15.9127]
[1721133510790,10.0,157.14,157.08,6.366]
[1721133510966,10.0,157.14,157.09,6.3657]
[1721133511282,10.0,157.14,157.1,6.3652]
[1721133511480,10.0,157.14,157.09,22.2797]
[1721133512368,16.3637,157.14,157.09,15.914]
[1721133513191,6.3641,157.13,157.09,15.914]
[1721133513386,45.0,157.13,157.09,15.914]
[1721133513576,16.3638,157.14,157.09,15.914]
[1721133513780,10.0,157.12,157.08,6.3658]
[1721133514175,6.3638,157.14,157.08,6.3658]
[1721133514386,6.3638,157.14,157.09,6.3657]
[1721133514582,16.3634,157.15,157.09,6.3657]
[1721133514769,10.0,157.15,157.1,6.3651]
[1721133515095,10.0,157.15,157.11,6.3649]
[1721133515265,22.7727,157.17,157.11,6.3649]
[1721133515467,45.0,157.16,157.12,6.3644]
[1721133515870,45.0,157.16,157.1,15.913]
[1721133515871,16.4102,157.17,157.11,6.3648]
[1721133516068,6.3629,157.16,157.1,22.2782]
[1721133516284,22.7728,157.17,157.11,6.3648]
[1721133516480,16.4102,157.17,157.12,6.3645]
[1721133517200,10.0,157.19,157.13,6.364]
[1721133517483,10.0,157.2,157.14,15.9089]
[1721133518194,6.3618,157.19,157.14,22.2725]
[1721133518492,10.0,157.2,157.15,6.3633]
[1721133518687,16.3615,157.2,157.14,22.2725]
[1721133519079,16.3615,157.2,157.15,6.3631]
[1721133519274,22.6785,157.22,157.16,6.3626]
[1721133519586,6.3609,157.21,157.16,6.3626]
[1721133519771,6.3609,157.21,157.15,6.3632]
[1721133519966,16.3177,157.22,157.15,6.3632]
[1721133520196,16.3177,157.22,157.16,6.3628]
[1721133520377,10.0,157.24,157.15,1.44238166]
[1721133520583,6.2384,157.26,157.21,6.3608]
[1721133520895,10.0,157.3,157.22,1.61198966]
[1721133521211,16.3573,157.3,157.25,6.359]
[1721133521403,16.3573,157.3,157.24,6.3595]
[1721133521909,16.3573,157.3,157.23,15.8999]
[1721133521910,10.0,157.28,157.23,15.8999]
[1721133522199,10.0,157.28,157.23,22.2598]
[1721133522375,10.0,157.26,157.2,15.9029]
[1721133522574,10.0,157.28,157.2,15.9029]
[1721133522785,10.0,157.3,157.19,0.34]
[1721133522994,16.3583,157.28,157.22,6.3604]
[1721133523270,51.3588,157.27,157.21,15.9017]
[1721133523804,45.0,157.27,157.22,6.3604]
[1721133523995,51.3585,157.27,157.22,6.3604]
[1721133524303,10.0,157.28,157.19,1.44188619]
[1721133524304,10.0,157.28,157.23,15.8997]
[1721133524468,10.0,157.28,157.19,0.17]
[1721133524671,10.0,157.28,157.23,6.36]
[1721133525032,10.0,157.3,157.19,1.61195698]
[1721133525198,45.0,157.29,157.25,6.3592]
[1721133525595,45.0,157.29,157.24,22.2582]
[1721133526040,16.3584,157.28,157.23,6.36]
[1721133526226,16.3584,157.28,157.22,6.3603]
[1721133526598,10.0,157.28,157.23,6.3599]
[1721133527021,16.3582,157.28,157.23,6.3599]
[1721133527530,6.3585,157.27,157.21,15.9022]
[1721133527903,10.0,157.28,157.22,1.27191121]
[1721133528230,10.0,157.28,157.23,6.36]
[1721133528397,16.3582,157.28,157.21,15.9022]
[1721133528606,45.0,157.29,157.23,15.8999]
[1721133528808,10.0,157.3,157.24,1.27180574]
[1721133529010,10.0,157.3,157.25,15.8978]
[1721133529223,10.0,157.3,157.26,7.63045155]
[1721133529531,10.0,157.3,157.26,6.3588]
[1721133529733,16.3573,157.3,157.25,22.257]
[1721133530235,16.3574,157.3,157.25,22.257]
[1721133530616,10.0,157.3,157.25,6.3591]
[1721133530807,10.0,157.3,157.23,1.27169283]
[1721133531129,10.0,157.3,157.24,17.17049238]
[1721133531640,16.3573,157.3,157.25,6.3591]
[1721133531804,16.3581,157.28,157.24,15.8988]
[1721133532007,16.3593,157.25,157.21,15.902]
[1721133532343,10.0,157.25,157.2,6.3609]
[1721133532504,10.0,157.25,157.18,31.0041]
[1721133532505,10.0,157.23,157.18,15.9046]
[1721133532707,10.0,157.23,157.19,6.3616]
[1721133532942,10.0,157.23,157.18,22.2666]
[1721133533609,10.0,157.25,157.2,6.3611]
[1721133533818,10.0,157.25,157.21,6.3607]
[1721133534210,10.0,157.25,157.2,15.9028]
[1721133534211,10.0,157.25,157.22,6.3604]
[1721133534415,10.0,157.25,157.21,6.3609]
[1721133534607,10.0,157.29,157.22,15.9008]
[1721133534819,45.0,157.28,157.23,6.36]
[1721133535021,10.0,157.29,157.25,6.3591]
[1721133535905,10.0,157.29,157.24,15.8988]
[1721133536107,10.0,157.29,157.27,6.3584]
[1721133536397,10.0,157.29,157.24,15.8988]
[1721133536398,10.0,157.29,157.24,22.2583]
[1721133537031,10.0,157.29,157.25,6.3592]
[1721133537436,10.0,157.29,157.22,48.2117]
[1721133537603,10.0,157.29,157.22,31.8024]
[1721133537936,16.3579,157.29,157.24,6.3596]
[1721133538505,16.3579,157.29,157.23,22.2595]
[1721133538709,10.0,157.29,157.24,6.3595]
[1721133539011,10.0,157.29,157.25,6.3592]
[1721133539405,10.0,157.29,157.22,31.8024]
[1721133539628,10.0,157.29,157.26,6.3588]
[1721133540011,6.1438,157.32,157.27,22.2542]
[1721133540609,6.1438,157.32,157.22,31.8024]
[1721133540610,10.0,157.29,157.24,15.8988]
[1721133540833,16.358,157.29,157.24,15.8988]
[1721133541340,10.0,157.29,157.23,6.36]
[1721133541540,10.0,157.26,157.21,15.902]
[1721133541907,6.3585,157.27,157.21,15.902]
[1721133542214,10.0,157.28,157.23,15.8994]
[1721133542409,10.0,157.26,157.23,15.8994]
[1721133542609,10.0,157.26,157.22,6.3603]
[1721133543026,45.0,157.27,157.22,6.3603]
[1721133543240,10.0,157.26,157.23,6.3599]
[1721133543407,10.0,157.24,157.2,6.3612]
[1721133543605,10.0,157.24,157.21,15.9015]
[1721133543827,10.0,157.24,157.2,6.3612]
[1721133544018,10.0,157.24,157.18,30.9641]
[1721133544225,45.0,157.23,157.19,6.3614]
[1721133544420,45.0,157.23,157.2,6.3612]
[1721133544618,10.0,157.24,157.2,6.3612]
[1721133544934,10.0,157.24,157.21,6.3608]
[1721133545115,10.0,157.26,157.22,6.3601]
[1721133545310,10.0,157.26,157.22,15.9008]
[1721133545935,10.0,157.29,157.24,6.3596]
[1721133546140,25.2438,157.32,157.24,6.3596]
[1721133546141,10.0,157.27,157.24,6.3596]
[1721133546338,45.0,157.28,157.24,6.3596]
[1721133546837,10.0,157.27,157.23,6.3599]
[1721133547145,45.0,157.28,157.25,6.3592]
[1721133547347,10.0,157.29,157.25,6.3592]
[1721133547522,10.0,157.29,157.26,6.3588]
[1721133547845,10.0,157.29,157.24,22.2586]
[1721133548049,16.3579,157.29,157.24,15.899]
[1721133549117,10.0,157.29,157.24,22.2586]
[1721133549338,10.0,157.29,157.24,15.899]
[1721133549654,10.0,157.31,157.26,6.3587]
[1721133550018,10.0,157.31,157.27,6.3584]
[1721133550528,10.0,157.31,157.25,6.3591]
[1721133551038,10.0,157.33,157.27,6.3583]
[1721133551241,10.0,157.31,157.27,6.3583]
[1721133551619,10.0,157.31,157.26,22.2555]
[1721133551938,16.3571,157.31,157.26,15.8967]
[1721133552137,16.3571,157.31,157.26,22.2554]
[1721133552437,10.0,157.31,157.26,22.2554]
[1721133553353,10.0,157.31,157.27,6.3584]
[1721133553846,10.0,157.31,157.26,15.8967]
[1721133554045,10.0,157.31,157.23,15.8999]
[1721133554250,10.0,157.27,157.18,52.4193]
[1721133554418,16.3588,157.27,157.22,6.3604]
[1721133554831,16.3593,157.25,157.2,22.2638]
[1721133555038,10.0,157.25,157.2,15.9028]
[1721133555360,10.0,157.21,157.18,6.362]
[1721133555654,10.0,157.23,157.19,6.3617]
[1721133555843,10.0,157.23,157.17,15.9055]
[1721133555844,10.0,157.23,157.18,6.362]
[1721133556023,10.0,157.23,157.19,6.3616]
[1721133556223,10.0,157.21,157.18,6.3621]
[1721133556534,10.0,157.21,157.18,6.362]
[1721133556741,10.0,157.23,157.18,6.3618]
[1721133556943,10.0,157.23,157.18,5.8618]
[1721133557148,16.3602,157.23,157.18,5.8618]
[1721133557454,16.3602,157.23,157.17,22.2679]
[1721133557650,16.3602,157.23,157.18,6.3621]
[1721133557860,10.0,157.25,157.14,46.9868]
[1721133558149,10.0,157.23,157.2,6.3609]
[1721133558371,10.0,157.23,157.19,22.265]
[1721133558646,10.0,157.23,157.15,0.34]
[1721133558647,10.0,157.25,157.22,6.3604]
[1721133559029,6.3408,157.26,157.22,6.3604]
[1721133559463,6.3408,157.26,157.21,22.2625]
[1721133559630,10.0,157.27,157.21,15.9018]
[1721133560546,10.0,157.27,157.22,1.27192404]
[1721133560749,6.3582,157.28,157.22,6.3603]
[1721133560750,6.3581,157.28,157.22,6.3603]
[1721133560947,45.0,157.27,157.23,6.3599]
[1721133561148,10.0,157.26,157.21,22.2624]
[1721133561538,10.0,157.26,157.22,6.3604]
[1721133561755,16.359,157.26,157.21,22.2626]
[1721133562055,6.3593,157.25,157.21,15.9018]
[1721133562437,10.0,157.24,157.18,15.9048]
[1721133562646,16.3598,157.24,157.18,22.2667]
[1721133563434,16.3598,157.24,157.19,6.3616]
[1721133563839,10.0,157.22,157.18,22.2667]
[1721133564165,10.0,157.22,157.14,46.9868]
[1721133564166,10.0,157.2,157.17,6.3624]
[1721133564335,10.0,157.22,157.18,6.3619]
[1721133564535,45.0,157.21,157.18,6.3619]
[1721133564943,10.0,157.2,157.18,6.3619]
[1721133565143,10.0,157.23,157.17,15.9059]
[1721133565463,16.3601,157.23,157.18,6.3618]
[1721133565638,10.0,157.21,157.18,6.3618]
[1721133566136,16.3611,157.21,157.14,62.8954]
[1721133566341,10.0,157.21,157.17,6.3622]
[1721133566561,10.0,157.21,157.18,6.362]
[1721133567147,10.0,157.21,157.17,6.3623]
[1721133567658,10.0,157.18,157.15,6.3632]
[1721133567866,61.3613,157.2,157.15,6.3632]
[1721133568051,10.0,157.18,157.15,6.3632]
[1721133568369,10.0,157.2,157.15,15.9081]
[1721133568675,10.0,157.2,157.16,6.3628]
[1721133569844,10.0,157.2,157.17,6.3624]
[1721133570073,10.0,157.2,157.18,6.3619]
[1721133570284,10.0,157.22,157.18,6.3621]
[1721133570449,45.0,157.21,157.18,6.3621]
[1721133571142,45.0,157.21,157.17,22.2682]
[1721133571662,10.0,157.2,157.16,6.3629]
[1721133572048,16.3616,157.2,157.14,31.0777]
[1721133572253,10.0,157.2,157.14,31.0777]